Cogmind - Beta 13 @@@ ROGUE MODE // 2024.05.13 @ 16:13:36 Player: ToasterKoishi Result: Destroyed by DW-3CW(R) with Subdweller Laser Performance ------------- Evolutions (0) 0 Regions Visited (3) 600 Robots Destroyed (18) 90 Value Destroyed (448) 448 Prototype IDs (0) 0 Alien Tech Used (0) 0 Bonus (0) 0 TOTAL SCORE: 1138 Bonus ------- None Cogmind --------- Core Integrity 0/250 Matter 250/300 Energy 99/100 System Corruption 0% Temperature Cool (6) Movement Rolling (120) Ox1 Location -10/Subcaves Parts ------- > --- POWER (1) -------- (None) > --- PROPULSION (2) --- Light Treads Subdweller Monowheel > --- UTILITY (2) ------ Scrap Shield > --- WEAPON (2) ------- Battle Cannon Battle Cannon > --- INVENTORY (5) ---- Subdweller Monowheel Subdweller Monowheel Battle Rifle Rocket Launcher Multitool Peak State ------------ > --- POWER ------------ Light Nuclear Core > --- PROPULSION ------- Light Treads Wheel > --- UTILITY ---------- Improved Heat Sink High-capacity Storage Unit > --- WEAPON ----------- Subdweller Laser Battle Cannon > --- INVENTORY -------- Subdweller Power Source Compact Wheel Subdweller Monowheel Subdweller Monowheel Subdweller Monowheel Seismic Detector Battle Rifle Battle Cannon Rocket Launcher Multitool Makeshift Hammer Scrap Shield Fragment Scrap Shield Fragment Scrap Shield Fragment Scrap Shield Fragment [Rating: 16] Favorites ----------- Power Light Nuclear Core Engine Subdweller Power Source Power Core Light Nuclear Core Propulsion Light Treads Treads Light Treads Wheel Wheel Utility Improved Heat Sink Device Improved Heat Sink Storage Small Storage Unit Protection Scrap Shield Weapon Medium Laser Energy Gun Medium Laser Energy Cannon Subdweller Beam Cannon Ballistic Cannon Battle Cannon Build | -11 -10 -10 -10 ------- Run | Yrd Mat Min Sub Slots Evolved . | . . . . Power . | . . . . Propulsion . | . . . . Utility . | . . . . Weapon . | . . . . Parts Attached 27 | 6 5 2 14 Power 5 | 1 1 1 2 Engine 4 | 1 1 . 2 Core 1 | . . 1 . Reactor . | . . . . Propulsion 8 | 2 1 . 5 Treads 2 | 1 . . 1 Leg . | . . . . Wheel 6 | 1 1 . 4 Hover . | . . . . Flight . | . . . . Utility 7 | 2 2 1 2 Device 2 | 1 . 1 . Storage 4 | 1 2 . 1 Processor . | . . . . Hackware . | . . . . Protection 1 | . . . 1 Artifact . | . . . . Weapon 7 | 1 1 . 5 Energy Gun 3 | 1 1 . 1 Energy Cannon 1 | . . . 1 Ballistic Gun . | . . . . Ballistic Cannon 3 | . . . 3 Launcher . | . . . . Special Weapon . | . . . . Impact Weapon . | . . . . Slashing Weapon . | . . . . Piercing Weapon . | . . . . Special Melee Weapon . | . . . . Unidentified Prototypes . | . . . . Parts Lost 4 | . . . 4 Power . | . . . . Propulsion 2 | . . . 2 Utility . | . . . . Weapon 2 | . . . 2 Highest Loss Streak 2 | . . . 2 To Critical Strikes . | . . . . Average Slot Usage (%) 92 | . 89 99 90 Engine 4 | . 14 . 4 Core 7 | . . 13 7 Treads 14 | . 14 14 14 Wheel 13 | . 14 14 13 Device 8 | . 4 13 7 Storage 9 | . 14 14 7 Protection 4 | . . . 6 Energy Gun 18 | . 27 28 13 Energy Cannon 2 | . . . 3 Ballistic Cannon 7 | . . . 10 Naked Turns . | . . . . Heaviest Build 58 | 11 15 15 58 Greatest Support 20 | 20 16 10 20 Greatest Overweight (x) 5 | 2 1 1 5 Average Overweight (x) 1 | . . 1 2 Largest Inventory Capacity 30 | 8 30 8 20 Average Capacity 9 | 7 8 8 10 Most Carried 15 | 2 8 8 15 Average Carried 7 | 1 6 7 7 Final Capacity 8 | 8 8 8 5 Final Carried 8 | 2 8 8 5 Class Distribution -------------------- 57% | Mutant 24% | Subdweller-Mutant 17% | Scavenger-Mutant Dominant Class ---------------- Mutant | -10/Materials Mutant | -10/Mines Subdweller-Mutant | -10/Subcaves Resources | -11 -10 -10 -10 ----------- Run | Yrd Mat Min Sub Matter Collected 602 | 237 70 20 275 Remotely . | . . . . Salvage Created 454 | 15 89 94 256 Parts 31 | 4 10 2 15 Haulers Intercepted . | . . . . Recyclers Shooed . | . . . . Parts Field Recycled . | . . . . Retrieved Matter . | . . . . Parts Self-Destructed 13 | . . . 13 Prevented . | . . . . Kills | -11 -10 -10 -10 ------- Run | Yrd Mat Min Sub Combat Hostiles Destroyed 17 | . 6 2 9 Guns 12 | . 6 2 4 Cannons 5 | . . . 5 Classes Destroyed 4 | 1 1 1 1 Tunneler 1 | 1 . . . Swarmer 8 | . 6 . 2 Grunt 2 | . . 2 . Subdweller 7 | . . . 7 Best Kill Streak 3 | 1 3 2 2 Combat Bots Only 3 | . 3 2 2 Max Kills in Single Turn 2 | 1 2 1 1 Gunslinging 1 | . 1 . . Exploded . | . . . . Melee . | . . . . Uniques/NPCs Destroyed . | . . . . Combat | -11 -10 -10 -10 -------- Run | Yrd Mat Min Sub Hostile Shots Fired 105 | . 32 8 65 Missed 26 | . 6 1 19 Damage Taken 1263 | . 215 85 963 Core 268 | . 46 26 196 Absorbed by Shields . | . . . . Core Remaining (%) 100 | 100 . . . Volleys Fired 62 | 1 10 6 45 Largest 2 | 1 2 2 2 Hottest 140 | 50 100 100 140 Shots Fired 118 | 1 20 12 85 Gun 69 | 1 20 12 36 Cannon 49 | . . . 49 Launcher . | . . . . Special . | . . . . Kinetic 39 | . . . 39 Thermal 79 | 1 20 12 46 Explosive . | . . . . Electromagnetic . | . . . . Robot Hit Streak 25 | 1 3 11 25 Robot Miss Streak 2 | . 1 . 2 Penetration Max . | . . . . Secondary Targets 1 | . 1 . . Max Gunslinging Chain 1 | . 1 . . Shots Hit Robots 79 | 1 11 11 56 Core Hits 30 | 1 7 5 17 Critical Kills . | . . . . Critical Parts Destroyed . | . . . . Critical Strikes 2 | 1 . . 1 Burn 1 | 1 . . . Blast 1 | . . . 1 Melee Attacks . | . . . . Impact . | . . . . Slashing . | . . . . Piercing . | . . . . Sneak Attacks . | . . . . Combat Hostiles . | . . . . Follow-up Attacks . | . . . . Damage Inflicted 1384 | 13 159 137 1075 Guns 788 | 13 150 137 488 Cannons 587 | . . . 587 Explosions . | . . . . Melee . | . . . . Ramming 9 | . 9 . . Kinetic 531 | . . . 531 Thermal 844 | 13 150 137 544 Explosive . | . . . . Electromagnetic . | . . . . Impact . | . . . . Slashing . | . . . . Piercing . | . . . . Highest Corruption . | . . . . Average Corruption . | . . . . Corruption Purged . | . . . . Corruption Blocked . | . . . . Overload Shots . | . . . . Overflow Damage . | . . . . Projectiles . | . . . . Explosions . | . . . . Melee . | . . . . Knockbacks 7 | . . . 7 Impact . | . . . . Kinetic 6 | . . . 6 Secondary 1 | . . . 1 Self-Inflicted Damage 4 | . 4 . . Shots . | . . . . Rammed 1 | . 1 . . Targets Rammed 1 | . 1 . . Kicked . | . . . . Crushed . | . . . . Highest Temperature 300 | 10 195 300 . Average Temperature 108 | 7 73 167 . Received Heat Transfer 234 | . . 66 168 Siege Activations . | . . . . Robots Corrupted . | . . . . Combat Hostiles . | . . . . Parts Fried . | . . . . Impact Corruptions . | . . . . Robots Melted . | . . . . Combat Hostiles . | . . . . Parts Melted 5 | . . 3 2 Heat Transferred 1734 | 111 444 407 772 Parts Sabotaged . | . . . . Parts Stolen . | . . . . Parts Stripped . | . . . . Power Chain Reactions . | . . . . Alert | -11 -10 -10 -10 ------- Run | Yrd Mat Min Sub Peak Influence 188 | 5 188 123 . Initial 73 | . 3 73 . Average 55 | . 45 64 . Maximum Alert Level . | . . . . Low Security (%) 100 | 100 100 100 . Level 1 . | . . . . Level 2 . | . . . . Level 3 . | . . . . Level 4 . | . . . . Level 5 . | . . . . High Security . | . . . . Max Security . | . . . . Squads Dispatched 1 | . 1 . . Investigation . | . . . . Extermination . | . . . . Reinforcement 1 | . 1 . . Assault . | . . . . Garrison . | . . . . Intercept . | . . . . Searches Triggered . | . . . . Construction Impeded . | . . . . Haulers Reinforced . | . . . . Active Scanning Responses . | . . . . Cargo Convoy Interrupts . | . . . . Stealth | -11 -10 -10 -10 --------- Run | Yrd Mat Min Sub Distress Signals . | . . . . Communications Jammed . | . . . . Distress Signals . | . . . . Times Spotted 39 | . 12 2 25 Peak Tracking Total 6 | . 5 2 6 Tactical Retreats 3 | . 2 . 1 Traps | -11 -10 -10 -10 ------- Run | Yrd Mat Min Sub Traps Triggered . | . . . . Indirectly . | . . . . Trap Hack Attempts . | . . . . Triggered . | . . . . Disarmed . | . . . . Reprogrammed . | . . . . Reused . | . . . . Traps Extracted . | . . . . Installed . | . . . . Triggered . | . . . . Machines | -11 -10 -10 -10 ---------- Run | Yrd Mat Min Sub Machines Disabled . | . . . . Max in Single Turn . | . . . . Machines Repaired . | . . . . Machines Dismantled . | . . . . Machines Sabotaged . | . . . . Overloaded Fab Kills . | . . . . Hacking | -11 -10 -10 -10 --------- Run | Yrd Mat Min Sub Machines Accessed 3 | . 2 . 1 Terminals 2 | . 2 . . Fabricators . | . . . . Repair Stations . | . . . . Recycling Units . | . . . . Scanalyzers . | . . . . Garrison Access . | . . . . Total Hacks 6 | . 4 . 2 Successful 2 | . . . 2 Failed 4 | . 4 . . Catastrophic 2 | . 2 . . Database Lockouts . | . . . . Manual 2 | . 2 . . Terminals 4 | . 4 . . Fabricators . | . . . . Repair Stations . | . . . . Recycling Units . | . . . . Scanalyzers . | . . . . Garrison Access . | . . . . Terminal Hacks 2 | . . . 2 Record 2 | . . . 2 Fabricator Hacks . | . . . . Repair Station Hacks . | . . . . Recycling Unit Hacks . | . . . . Scanalyzer . | . . . . Garrison Access Hacks . | . . . . Unauthorized Hacks . | . . . . Terminals . | . . . . Fabricators . | . . . . Repair Stations . | . . . . Recycling Units . | . . . . Scanalyzers . | . . . . Garrison Access . | . . . . Data Cores Recovered . | . . . . Used . | . . . . Hacking Detections 2 | . 2 . . Full Trace Events 1 | . 1 . . Feedback Events . | . . . . Feedback Blocked . | . . . . Robot Schematics Acquired . | . . . . Robots Built . | . . . . Authchips . | . . . . Time . | . . . . Total Robot Build Rating . | . . . . Part Schematics Acquired . | . . . . Parts Built . | . . . . Authchips . | . . . . Time . | . . . . Total Part Build Rating . | . . . . Parts Repaired . | . . . . Time . | . . . . Parts Recycled . | . . . . Recycled Matter . | . . . . Retrieved Matter . | . . . . Retrieved Components . | . . . . Parts Scanalyzed . | . . . . Part Schematics Acquired . | . . . . Parts Damaged . | . . . . Bothacking | -11 -10 -10 -10 ------------ Run | Yrd Mat Min Sub Used RIF Installer . | . . . . Robots Hacked . | . . . . Non-combat . | . . . . Combat . | . . . . Robot Hacks Applied . | . . . . Relay Couplers Released . | . . . . Fabnet Peak Effective % . | . . . . Robots Rewired . | . . . . Allies Hacked . | . . . . Hacks Repelled . | . . . . Allies | -11 -10 -10 -10 -------- Run | Yrd Mat Min Sub Total Allies . | . . . . Largest Group . | . . . . Highest-Rated Group . | . . . . Highest-Rated Ally . | . . . . Total Orders . | . . . . Ally Attacks . | . . . . Total Damage . | . . . . Kills . | . . . . Allies Corrupted . | . . . . Allies Melted . | . . . . Intel | -11 -10 -10 -10 ------- Run | Yrd Mat Min Sub Robot Analysis Total . | . . . . Derelict Logs Recovered 3 | . . 1 2 Drone Launches . | . . . . Drone Recoveries . | . . . . Exploration | -11 -10 -10 -10 ------------- Run | Yrd Mat Min Sub Turns Passed 3210 | 63 298 747 2102 Spaces Moved 2241 | 49 242 516 1434 Core 10 | 10 . . . Treads 11 | 1 . . 10 Legs . | . . . . Wheels 2220 | 38 242 516 1424 Hover . | . . . . Flight . | . . . . Fastest Speed 50 | 50 95 95 95 Average Speed 115 | 101 97 95 126 Slowest Speed 240 | 160 100 95 240 Overloaded Moves . | . . . . Propulsion Burnouts . | . . . . Robots Hopped . | . . . . Cave-ins Triggered . | . . . . Exploration Rate (%) 56 | 5 39 99 83 Regions Visited 3 Branch Regions 2 Pre-discovered Areas 2 | . . 1 1 Known Exits Taken . | . . . . Unknown Exits Taken 3 | 1 1 1 . Scrap Searched 5 | . . 1 4 Spaces Dug . | . . . . Terrain Destroyed 7 | . . . 7 Melee . | . . . . Projectile 7 | . . . 7 AOE . | . . . . Terrain Rammed . | . . . . Walls Destroyed . | . . . . Machines Disabled . | . . . . Actions | -11 -10 -10 -10 --------- Run | Yrd Mat Min Sub Total 2768 | 58 284 762 1664 Wait 365 | . 19 234 112 Move 2238 | 48 241 515 1434 Hop . | . . . . Pick Up 30 | 3 5 2 20 Fast Attach 12 | 5 3 1 3 Attach 7 | 1 . . 6 Detach 4 | . 1 . 3 Swap 8 | . 2 1 5 Drop 33 | . 2 3 28 Fire 62 | 1 10 6 45 Melee . | . . . . Ram 1 | . 1 . . Kick . | . . . . Crush . | . . . . Escape Stasis . | . . . . Rewire . | . . . . Trap . | . . . . Miscellaneous 8 | . . . 8 Route ------- -11/Scrapyard -10/Materials -10/Mines (discovered 4 exits: [*Mat x2] / [*Exi] / *Sub) -10/Subcaves (discovered 2 exits: [*Mat] / [*Rec]) History --------- Turn | Location | Event 21 | -11/Scrapyard | Discovered new exit (range 15) 64 | -11/Scrapyard | Entered Materials 309 | -10/Materials | Build established: Mutant 316 | -10/Materials | Discovered new exit (range 15) 362 | -10/Materials | Entered Mines 513 | -10/Mines | Discovered new exit (range 9) 515 | -10/Mines | Met a Derelict testing a Signal Generator 522 | -10/Mines | Found Signal Generator 604 | -10/Mines | Discovered new exit (range 12) 611 | -10/Mines | Received a Rocket Launcher from a helpful Derelict 622 | -10/Mines | Deemed a non-threat by the Exiles lab entrance 622 | -10/Mines | Discovered new exit (range 5) 676 | -10/Mines | Assembled infested the area 745 | -10/Mines | Learned location of Zion (-6) 1107 | -10/Mines | Discovered new exit (range 3) 1109 | -10/Mines | Entered Subcaves 1585 | -10/Subcaves | Shifting Twisted Machinery released Mak. Hammer 1588 | -10/Subcaves | Build established: Scavenger-Mutant 1594 | -10/Subcaves | A swath of the cavern ceiling suddenly collapsed 1647 | -10/Subcaves | Shifting Twisted Machinery released Battle Cannon 1858 | -10/Subcaves | Disturbed a concealed Subdweller 2104 | -10/Subcaves | Learned Materials interactive machine intel 2119 | -10/Subcaves | Discovered new exit (range 5) 2142 | -10/Subcaves | Core integrity fell below 50% 2277 | -10/Subcaves | Core integrity fell below 20% 2447 | -10/Subcaves | Build established: Subdweller-Mutant 2702 | -10/Subcaves | A swath of the cavern ceiling suddenly collapsed 2755 | -10/Subcaves | Visited Clippyterm 2815 | -10/Subcaves | Ambushed by Subdweller buried in earth 3013 | -10/Subcaves | Met a Zionite searching for "candidates" 3138 | -10/Subcaves | Discovered new exit (range 12) 3211 | -10/Subcaves | Destroyed by DW-3CW(R) with Subdweller Laser Last Messages --------------- 02964_ Acquired 15 matter. 02967_ RY-F00(O) collects matter. 02974_ RY-F00(O) puts together Sub. Beam Cannon. 02976_ RY-F00(O) collects matter. 03005_ RH-S1T(z): "She is not going to be happy we haven't found any suitable candidates yet." 03013_ RH-S1T(z): "Hey you! It's really dangerous down here, I feel that you could die at any moment. For your health and safety might I suggest a trip to Zion?" World map confirmed: -6/Zion. 03014_ RY-F00(O) puts together Mak. Light Armor Plating. 03054_ RY-F00(O) puts together Sub. Monowheel. 03069_ Dropped Sub. Monowheel. 03069_ Acquired Sub. Monowheel. 03106_ RY-F00(O) collects matter. 03138_ EXIT=FOUND 03146_ S-10 Pest destroyed. 03149_ RY-F00(O) collects matter. 03161_ S-10 Pest destroyed. 03209_ RY-F00(O) puts together Sub. Beam Cannon. Map ----- +----------------------------------------------------+ | ?????????????????????????????????????????????????? | | ?????????????????????????????????????????????????? | | ?????????????????????????????????????????????????? | | ?????????????????????????????????????????????????? | | ?????????????????????????????????????????????????? | | ??????????????????????#####??????????????????????? | | ????????????????###### ##?????????????????????# | | ????????????????# ## #?????????????????????# | | ???????#????????# #??????????????????##### | | ??????## ???????# #?????????###???????# | | ????###"""????### ##????????# ##????## | | ?## #" "????# ##???????? ##??## | | ? " "??#### ###??????# #?## | | ?? "### ## #??????# #?# | | ?????#"""" # ##?????## ### | | ???????# #?????## ### # | | ???????# #????## ### #? | | ???###### # ## #???# ### #? | | ???# ### ## ##?# #??# ### ## | | ???# #?## # ##???####??## #### ## # | | ???#" ##?## ##??####?????###" ## # | | ????## ####= ## #???# ####?## ] | | ##### ### ##??# ### # | | #?# ##?# # # ### | | ### ### ! #### ### & | | ####%R @ #??# ##?# | | ##??## ] ### ##?###??# ## | | ####?????# ## O ##?#### #?????# #? | | #?????????# ##### #?????# ##?????# ##? | | ??????????# ##???#### ###??? ##?????###??? | | ??????????# ##???????## ### #??????????? | | ??????????### #????????# ##?????????? | | ????????????## ##????????# #?????????? | | ##????????????# ##???????## ## ####?????????? | | ###########?## #???????# ####?????????????? | | %# ## # # ### # ##???????#######????????????????? | | #[%##??????????????????????????????? | | # ## ##?????????????????????????????? | | # # ## # ## ## # ##????????????????????????????? | | ############ #?#### ##???????????????????????????? | | ??????????# ##????## ##??????????????????????????? | | ?????????# #??????# # ##?????????????????????????? | | ????????# #??????# ##* #?????????????????????????? | | ???????# #???????##?# =#?????????????????????????? | | ???????" ???????????#%##?????????????????????????? | | ?????? #????????????# #??????????????????????????? | | ????? ?????????????? $#??????????????????????????? | | ???????????????????# ??????????????????????????? | | ???????????????????## ??????????????????????????? | | ???????????????????? ????????????####??????????? | +----------------------------------------------------+ Best States ------------- Heat Dissipation 39 Energy Generation 15 Energy Capacity 250 Matter Stores 300 Matter Capacity 300 Sight Range 16 Terrain Scan Density 10 Armor Coverage 800 Evasion (%) 41 Recoil Reduction 1 Item Schematics ----------------- None Robot Schematics ------------------ None Fabricated ------------ Nothing Alien Tech Used ----------------- None Achievements -------------- None Challenges ------------ None Game ------ Seed AluminumAntimissileCoupler Manual? 0 Play Time 00:27:23 Cumulative 95.4 hours Start 2024.05.13 @ 15:52:41 End 2024.05.13 @ 16:13:36 Sessions 3 Manual Loads 0 Difficulty Rogue Special Mode None Game No. 113 Rogue 113 Adventurer 0 Explorer 0 Win Type - Total 13 Types 12/0/1/0/0/0/0/0/0 Lore% 56 Gallery% 50 Achievement% 50 Wizard Run 0 Options --------- Layout 0 ASCII 0 Keyboard 1 Movement Vi Keybinds 0 Fullscreen 2 Font 16/SmallcapsGlow Map View 64x51 Zoom Use 0% Tactical HUD 1 Map Filters NONE Filters NONE Steam X RUN: 94cae606-dafb-4284-8fd7-63c4721f9045